bitfinex-derivatives/quotes_SOLF0:USTF0_20250703
["timestamp","ask_amount","ask_price","bid_price","bid_amount"]
[1751548380936,6.5308,153.07,153.02,193.12]
[1751548381137,4.77411621,153.08,153.03,6.5321]
[1751548381337,6.5309,153.07,153.04,46.4]
[1751548381635,4.77411621,153.06,153.04,46.4]
[1751548381837,6.5315,153.05,153.04,46.4]
[1751548382333,6.533,153.02,152.99,564.12]
[1751548382538,6.533,153.02,153.0,193.14]
[1751548382733,4.77411621,153.01,152.99,610.52]
[1751548382927,4.77411621,153.01,152.95,4.77411621]
[1751548383237,4.77411621,153.01,152.96,46.4]
[1751548383436,4.77411621,153.01,152.97,193.14]
[1751548383636,4.77411621,153.01,152.95,4.77411621]
[1751548383837,4.77411621,153.01,152.96,239.54]
[1751548384037,4.77411621,153.01,152.97,193.14]
[1751548384840,2.3237,153.05,152.97,193.14]
[1751548385039,4.77411621,153.04,152.98,193.14]
[1751548385241,2.3237,153.05,152.99,4.77411621]
[1751548385634,4.77411621,153.04,152.98,193.14]
[1751548385834,9.49798858,153.05,152.98,193.14]
[1751548386242,6.5326,153.03,152.98,193.14]
[1751548387230,6.5326,153.03,153.0,6.5332]
[1751548387436,2.3237,153.05,153.01,239.56]
[1751548387640,7.17428858,153.07,153.01,239.56]
[1751548387838,6.5317,153.05,153.02,6.5326]
[1751548388140,7.17428858,153.07,153.01,239.56]
[1751548388643,6.5312,153.06,153.03,6.5321]
[1751548388848,9.37838858,153.09,153.01,239.56]
[1751548389238,9.37838858,153.09,153.03,6.5322]
[1751548389440,7.17428858,153.07,153.03,6.5322]
[1751548389739,7.17428858,153.07,153.01,239.56]
[1751548390038,6.5313,153.06,153.03,6.5321]
[1751548390642,6.5313,153.06,153.01,239.56]
[1751548391242,7.17428858,153.07,153.01,239.56]
[1751548391443,9.37838858,153.09,153.01,246.73428858]
[1751548391842,9.37838858,153.09,153.06,6.5309]
[1751548392545,15.90838858,153.09,153.06,6.5309]
[1751548396260,6.5295,153.1,153.05,193.12]
[1751548396651,6.5295,153.1,153.06,46.4]
[1751548396857,6.5295,153.1,153.07,6.5304]
[1751548397159,6.5298,153.09,153.06,46.4]
[1751548397359,9.38958858,153.11,153.06,46.4]
[1751548397852,6.5301,153.09,153.06,46.4]
[1751548398047,9.38958858,153.11,153.06,46.4]
[1751548398356,2.2153,153.11,153.06,46.4]
[1751548399256,214.82578456,153.13,153.06,46.4]
[1751548399754,6.529,153.11,153.08,6.53]
[1751548400359,6.5294,153.1,153.08,6.53]
[1751548400653,214.82578456,153.13,153.06,46.4]
[1751548400862,6.5307,153.07,153.06,46.4]
[1751548401457,6.5309,153.07,153.02,566.7096]
[1751548401657,7.17428858,153.09,153.03,239.38]
[1751548401859,215.96281651,153.13,153.03,246.55428858]
[1751548402058,6.5297,153.1,153.03,246.55428858]
[1751548402257,214.82578456,153.13,153.03,246.55428858]
[1751548402459,5.20281385,153.12,153.06,6.5308]
[1751548402667,6.53,153.09,153.07,193.04]
[1751548403461,7.17428858,153.11,153.05,46.34]
[1751548404159,6.5303,153.08,153.05,46.34]
[1751548404560,7.17428858,153.09,153.05,46.34]
[1751548404765,6.5309,153.07,153.05,46.34]
[1751548406658,4.77965464,153.09,153.05,46.34]
[1751548406863,4.77965464,153.12,153.05,46.34]
[1751548406864,4.77965464,153.07,153.05,46.34]
[1751548407060,6.5311,153.06,153.05,46.34]
[1751548413960,6.5309,153.07,153.05,46.34]
[1751548414169,5.94804854,153.12,153.05,244.09965464]
[1751548414365,218.37919916,153.13,153.05,244.09965464]
[1751548415064,6.5296,153.1,153.07,6.5304]
[1751548415369,218.37919916,153.13,153.08,192.98]
[1751548416268,6.5298,153.09,153.08,192.98]
[1751548417971,6.5296,153.1,153.08,192.98]
[1751548418469,6.5298,153.09,153.08,192.98]
[1751548418670,11.76640704,153.09,153.08,192.98]
[1751548419672,5.23660704,153.09,153.08,192.98]
[1751548420173,11.76640704,153.09,153.08,192.98]
[1751548421669,5.23660704,153.09,153.08,192.98]
[1751548421873,6.5295,153.1,153.08,199.5102]
[1751548422372,4.77965464,153.12,153.08,199.5102]
[1751548422672,5.23623901,153.11,153.08,199.5102]
[1751548422866,6.5296,153.1,153.08,199.5102]
[1751548423373,6.5296,153.1,153.08,192.98]
[1751548423968,6.5296,153.1,153.08,199.51]
[1751548426575,6.5292,153.11,153.09,6.5296]
[1751548426772,203.26029598,153.13,153.1,46.32]
[1751548426973,5.24218757,153.12,153.1,46.32]
[1751548427176,6.529,153.11,153.1,46.32]
[1751548427377,11.77118757,153.11,153.1,239.2]
[1751548431777,11.77699643,153.11,153.1,239.2]
[1751548433373,5.24799643,153.11,153.1,239.2]
[1751548433569,5.24799643,153.13,153.1,239.2]
[1751548433777,5.24799643,153.12,153.1,239.2]
[1751548433977,5.24799643,153.11,153.1,239.2]
[1751548434377,5.24799643,153.13,153.1,239.2]
[1751548434570,6.529,153.11,153.1,239.2]
[1751548434776,11.77699643,153.11,153.1,239.2]
[1751548436885,5.24799643,153.11,153.1,239.2]
[1751548437079,5.99662467,153.14,153.1,239.2]
[1751548437383,4.77965464,153.17,153.1,239.2]
[1751548437681,4.77965464,153.13,153.05,4.77965464]
[1751548437875,10.01840165,153.18,153.03,2.3745]
[1751548437876,4.77965464,153.11,153.06,239.06]
[1751548438180,5.99662467,153.15,153.06,46.26]
[1751548438181,6.5296,153.1,153.06,46.26]
[1751548438380,6.5296,153.1,153.07,192.8]
[1751548438982,4.77965464,153.1,153.06,46.26]
[1751548439177,4.77965464,153.1,153.08,192.8]
[1751548439373,4.77965464,153.1,153.06,46.26]
[1751548439572,4.77965464,153.08,153.06,239.04]
[1751548439780,4.77965464,153.08,153.06,192.78]
[1751548439977,4.77965464,153.08,153.05,239.04]
[1751548440278,4.77965464,153.06,153.02,564.4]
[1751548440484,5.99662467,153.11,153.04,46.26]
[1751548440684,4.77965464,153.05,153.04,46.26]
[1751548440980,11.31115464,153.05,153.04,46.26]
[1751548442478,6.5331,153.02,153.01,192.8]
[1751548442777,4.77965464,153.02,153.01,192.78]
[1751548442984,11.31275464,153.02,153.0,46.26]
[1751548443187,11.31275464,153.02,153.0,239.04]
[1751548443484,4.77965464,153.02,153.0,46.26]
[1751548443783,4.77965464,153.02,153.0,239.04]
[1751548444586,6.5332,153.01,153.0,239.04]
[1751548448088,6.5332,153.01,153.0,46.26]
[1751548448290,6.5332,153.01,153.0,239.04]
[1751548448586,6.5332,153.01,153.0,239.06]
[1751548452283,6.5332,153.01,153.0,239.04]
[1751548453390,11.31285464,153.01,153.0,239.04]
[1751548455785,6.5332,153.01,153.0,239.04]
[1751548459290,6.5332,153.01,153.0,46.26]
[1751548459487,6.5332,153.01,153.0,239.02]
[1751548459997,6.5332,153.01,153.0,46.26]
[1751548460197,4.77965464,153.02,152.95,564.32]
[1751548460391,4.77965464,153.02,152.88,8.13035698]
[1751548460392,4.77965464,152.97,152.96,46.22]
[1751548460591,4.77965464,152.97,152.96,192.76]
[1751548461601,11.31455464,152.97,152.96,192.76]
[1751548461999,2.2171,153.01,152.93,46.22]
[1751548462301,2.1456,153.07,152.97,4.77965464]
[1751548462597,4.77965464,153.06,152.99,4.77965464]
[1751548462799,6.5323,153.04,153.0,199.2733]
[1751548462990,4.77965464,153.06,153.0,192.74]
[1751548463191,6.5324,153.03,153.0,199.2734]
[1751548464001,6.5329,153.02,153.0,192.74]
[1751548464194,4.77965464,153.06,153.0,192.74]
[1751548465200,4.77965464,153.06,153.0,199.2734]
[1751548465601,6.5326,153.03,153.0,199.2734]
[1751548466901,6.5328,153.02,153.0,199.2734]
[1751548467301,4.77965464,153.04,153.0,192.74]
[1751548467499,6.5329,153.02,153.0,192.74]
[1751548468605,6.5332,153.01,153.0,192.74]
[1751548471601,2.1456,153.07,152.98,46.22]
[1751548471602,6.5341,152.99,152.98,46.22]
[1751548471902,4.77965464,153.0,152.96,46.22]
[1751548472207,4.77965464,152.98,152.96,46.22]
[1751548472404,4.77965464,152.98,152.97,192.68]
[1751548473307,11.31415464,152.98,152.97,192.68]
[1751548473709,11.31415464,152.98,152.97,192.66]
[1751548475901,2.1867,153.02,152.97,192.66]
[1751548475902,6.96635464,153.02,152.97,192.66]
[1751548476108,8.14222467,153.07,152.97,192.66]
[1751548476299,6.5309,153.07,153.0,4.77965464]
[1751548476501,6.5309,153.07,153.01,238.88]
[1751548476717,5.99662467,153.09,153.03,4.77965464]
[1751548476908,5.99662467,153.1,153.05,4.77965464]
[1751548477108,12.52612467,153.1,153.07,6.5304]
[1751548477306,10.77627931,153.11,153.08,192.66]
[1751548477614,6.5298,153.09,153.08,192.66]
[1751548478315,4.77965464,153.13,153.08,192.66]
[1751548479113,6.5288,153.12,153.09,6.5297]
[1751548479307,4.77965464,153.13,153.08,192.66]
[1751548479715,6.529,153.11,153.08,199.19]
[1751548480019,4.77965464,153.13,153.08,192.66]
[1751548481015,2.3168,153.16,153.08,192.66]
[1751548481202,7.09645464,153.16,153.08,192.66]
[1751548481713,7.09645464,153.16,153.1,6.5291]
[1751548481912,7.09645464,153.16,153.11,46.2]
[1751548482106,6.5281,153.13,153.12,192.56]
[1751548488228,6.5285,153.12,153.11,238.68]
[1751548488430,11.30815464,153.12,153.11,238.68]
[1751548491025,11.30815464,153.12,153.11,46.2]
[1751548491232,4.77965464,153.12,153.06,610.5]
[1751548491426,4.77965464,153.09,153.07,192.46]
[1751548491820,6.5302,153.08,153.07,192.46]
[1751548495135,6.5307,153.07,153.06,610.5]
[1751548495332,6.5307,153.07,153.06,802.94]
[1751548495934,11.31035464,153.07,153.06,46.12]
[1751548496238,6.532,153.04,153.03,46.12]
[1751548496534,6.532,153.04,153.03,238.56]
[1751548496735,6.532,153.04,153.03,46.12]
[1751548496941,6.532,153.04,153.03,238.56]
[1751548497527,11.31135464,153.05,153.03,238.56]
[1751548498236,6.5319,153.04,153.03,238.56]
[1751548499133,11.31145464,153.05,153.03,46.12]
[1751548499334,11.31145464,153.05,153.04,192.42]
[1751548499835,6.5318,153.05,153.04,192.42]
[1751548500738,6.5318,153.05,153.03,46.12]
[1751548501042,6.5318,153.05,153.04,192.42]
[1751548502430,4.77965464,153.09,153.04,192.42]
[1751548503232,6.5313,153.06,153.04,192.42]
[1751548504346,6.5307,153.07,153.04,192.42]
[1751548504537,4.77965464,153.09,153.04,192.42]
[1751548505044,6.5311,153.06,153.04,198.9517]
[1751548505442,6.5309,153.07,153.04,198.9517]
[1751548505744,2.3782,153.1,153.04,192.42]
[1751548505942,7.15785464,153.1,153.04,197.19965464]
[1751548506242,7.15785464,153.1,153.05,6.5313]
[1751548506438,6.5305,153.08,153.06,192.4]
[1751548506640,4.77965464,153.09,153.06,192.4]
[1751548506840,4.77965464,153.12,153.06,192.4]
[1751548507241,4.77965464,153.12,153.06,198.931]
[1751548507839,4.77965464,153.12,153.06,192.4]
[1751548508841,6.53,153.09,153.06,6.5309]
[1751548509044,6.53,153.09,153.07,192.38]
[1751548510241,6.53,153.09,153.07,198.9106]
[1751548510645,6.53,153.09,153.07,192.38]
[1751548512550,4.77965464,153.14,153.07,192.38]
[1751548512751,4.77965464,153.14,153.08,4.77965464]
[1751548513155,6.5289,153.12,153.09,6.5296]
[1751548513341,6.5289,153.12,153.1,192.36]
[1751548513653,6.529,153.11,153.1,192.36]
[1751548516544,2.2669,153.17,153.1,192.36]
[1751548516752,7.04655464,153.17,153.11,46.12]
[1751548516955,2.2669,153.17,153.11,46.12]
[1751548517252,6.5283,153.13,153.11,46.12]
[1751548517849,6.5283,153.13,153.11,52.6489]
[1751548518550,6.5285,153.12,153.11,46.12]
[1751548518853,6.5285,153.12,153.11,238.42]
[1751548528255,4.77965464,153.13,153.05,2.3115]
[1751548528554,4.77965464,153.08,153.02,46.04]
[1751548528955,4.77965464,153.08,153.03,192.22]
[1751548529154,4.77965464,153.08,153.03,198.7522]
[1751548529349,6.5314,153.06,153.03,198.7522]
[1751548529953,2.3117,153.1,153.03,192.22]
[1751548530157,7.09135464,153.1,153.03,196.99965464]
[1751548530362,5.99662467,153.13,153.05,4.77965464]
[1751548530556,4.77965464,153.14,153.07,4.77965464]
[1751548530856,4.77965464,153.14,153.08,46.06]
[1751548531056,4.77965464,153.14,153.09,192.22]
[1751548531454,6.5292,153.11,153.09,192.22]
[1751548532059,4.77965464,153.1,153.03,4.77965464]
[1751548532259,4.77965464,153.06,153.03,46.06]
[1751548532656,6.5318,153.05,153.03,46.06]
[1751548534358,6.5319,153.04,153.03,46.06]
[1751548536263,4.77965464,153.04,152.99,46.06]
[1751548536469,4.77965464,153.04,152.99,238.28]
[1751548536769,4.77965464,153.04,152.99,244.814]
[1751548537063,4.77965464,153.04,152.99,46.06]
[1751548537268,4.77965464,153.04,152.99,238.28]
[1751548538170,4.77965464,153.04,152.99,46.06]
[1751548538471,6.5335,153.01,152.99,46.06]
[1751548539172,4.77965464,153.04,152.99,46.06]
[1751548540374,6.533,153.02,152.99,52.594]
[1751548541970,8.31881598,153.09,152.99,50.83965464]
[1751548542175,4.77965464,153.06,152.99,50.83965464]
[1751548542678,6.5329,153.02,152.99,50.83965464]
[1751548542877,6.5329,153.02,152.99,46.06]
[1751548543078,6.5333,153.01,152.99,52.5938]
[1751548543282,4.77965464,153.04,152.99,46.06]
[1751548543574,6.5326,153.03,153.0,6.5336]
[1751548543777,4.77965464,153.06,152.99,50.83965464]
[1751548544184,6.5323,153.04,153.01,6.533]
[1751548544376,6.5323,153.04,153.01,198.753]
[1751548544775,4.77965464,153.06,153.02,6.5327]
[1751548544973,2.3176,153.09,153.02,6.5327]
[1751548545175,2.3176,153.09,153.01,196.99965464]
[1751548545472,7.09725464,153.09,153.01,196.99965464]
[1751548545679,7.09725464,153.09,153.04,6.5318]
[1751548545868,7.09725464,153.09,153.04,52.5918]
[1751548546072,4.77965464,153.07,153.04,46.06]
[1751548546272,6.5315,153.05,153.04,46.06]
[1751548546473,4.77965464,153.07,153.04,46.06]
[1751548547579,6.5313,153.06,153.04,46.06]
[1751548547771,4.77965464,153.07,153.04,46.06]
[1751548548379,6.5315,153.05,153.04,46.06]
[1751548549881,6.5315,153.05,153.02,6.5326]
[1751548550474,6.532,153.04,153.02,6.5326]
[1751548550683,6.532,153.04,152.98,2.3778]
[1751548550684,4.77965464,153.05,152.98,2.3778]
[1751548550978,6.5326,153.03,152.98,2.3778]
[1751548551172,6.5326,153.03,153.0,6.5334]
[1751548551375,2.3176,153.09,152.99,243.03965464]
[1751548551571,4.77965464,153.08,153.01,6.533]
[1751548551782,4.77965464,153.08,152.99,243.03965464]
[1751548552182,6.5318,153.05,153.02,6.5324]
[1751548553084,7.09725464,153.09,153.03,4.77965464]
[1751548553272,4.77965464,153.11,153.04,238.22]
[1751548553677,6.5298,153.09,153.06,6.531]
[1751548554181,4.77965464,153.11,153.06,6.531]
[1751548554376,6.5304,153.08,153.06,6.531]
[1751548556488,6.5298,153.09,153.07,6.5307]
[1751548556779,4.77965464,153.13,153.07,4.77965464]
[1751548557489,6.5296,153.1,153.07,4.77965464]
[1751548557888,6.5296,153.1,153.08,6.53]
[1751548558088,6.5296,153.1,153.09,46.02]
[1751548558287,6.5296,153.1,153.08,6.53]
[1751548559597,6.5296,153.1,153.09,46.02]
[1751548560299,4.77965464,153.13,153.09,46.02]
[1751548560493,12.59651598,153.15,153.09,46.02]
[1751548560494,4.77965464,153.11,153.09,46.02]
[1751548561191,6.5294,153.1,153.09,46.02]
[1751548561595,4.77965464,153.11,153.06,192.16]
[1751548561792,4.77965464,153.09,153.06,192.16]
[1751548562496,4.77965464,153.09,153.04,46.02]
[1751548562893,6.5312,153.06,153.04,46.02]
[1751548563395,4.77965464,153.09,153.04,46.02]
[1751548564593,6.5309,153.07,153.04,52.5519]
[1751548564788,4.77965464,153.09,153.04,46.02]
[1751548565288,6.5313,153.06,153.04,46.02]
[1751548566095,6.5315,153.05,153.04,46.02]
[1751548568801,6.01471587,153.11,153.04,46.02]
[1751548569095,6.01471587,153.12,153.08,4.77965464]
[1751548569295,6.01471587,153.13,153.1,4.77965464]
[1751548569506,6.01471587,153.14,153.11,46.02]
[1751548570198,4.77965464,153.16,153.11,46.02]
[1751548570398,2.2413,153.15,153.11,46.02]
[1751548570898,6.5278,153.14,153.11,46.02]
[1751548571300,2.2413,153.15,153.11,46.02]
[1751548571496,6.5279,153.14,153.11,46.02]
[1751548571898,2.2413,153.15,153.11,46.02]
[1751548572203,4.5661,153.15,153.11,46.02]
[1751548572398,6.5285,153.12,153.11,46.02]
[1751548573106,7.16398192,153.12,153.07,238.1]
[1751548573404,7.16398192,153.09,153.07,238.1]
[1751548573597,7.16398192,153.09,153.07,46.0]
[1751548574605,6.5302,153.08,153.07,46.0]
[1751548577111,13.17869779,153.13,153.07,46.0]
[1751548577309,2.2756,153.14,153.08,192.1]
[1751548577509,6.5288,153.12,153.09,6.5296]
[1751548577710,5.26055916,153.11,153.09,6.5296]
[1751548579013,5.26055916,153.11,153.1,6.5294]
[1751548579413,5.26055916,153.11,153.08,192.1]
[1751548579617,5.26241053,153.1,153.08,192.1]
[1751548579809,7.16398192,153.13,153.08,192.1]
[1751548580009,6.5296,153.1,153.08,192.1]
[1751548581109,7.16398192,153.13,153.08,192.1]
[1751548581412,6.5298,153.09,153.08,192.1]
[1751548582211,6.5302,153.08,153.07,46.0]
[1751548583316,8.29031587,153.14,153.07,46.0]
[1751548583515,2.2756,153.14,153.07,46.0]
[1751548583711,4.5661,153.15,153.08,7.16398192]
[1751548583918,2.2413,153.15,153.09,192.08]
[1751548584113,15.51619779,153.18,153.1,7.16398192]
[1751548584320,6.5271,153.16,153.13,6.5278]
[1751548584518,6.5271,153.16,153.13,198.6078]
[1751548584710,6.5271,153.16,153.13,192.08]
[1751548584913,6.5271,153.16,153.13,198.6079]
[1751548585209,2.3375,153.18,153.13,192.08]
[1751548585519,6.527,153.16,153.13,192.08]
[1751548585723,17.60889779,153.2,153.13,192.08]
[1751548586221,6.5267,153.17,153.13,192.08]
[1751548586714,10.44491587,153.2,153.14,6.5275]
[1751548586920,17.60889779,153.2,153.14,6.5275]
[1751548587120,11.59418192,153.2,153.14,6.5275]
[1751548587520,11.59418192,153.2,153.13,198.608]
[1751548587718,7.16398192,153.18,153.13,192.08]
[1751548588715,7.16398192,153.16,153.13,192.08]
[1751548589024,6.5277,153.14,153.13,192.08]
[1751548592323,6.5274,153.15,153.13,192.08]
[1751548592626,7.16398192,153.19,153.13,192.08]
[1751548592833,5.25817151,153.18,153.13,192.08]
[1751548593033,11.78417151,153.18,153.15,6.527]
[1751548593226,6.526,153.18,153.16,192.02]
[1751548593418,6.526,153.18,153.16,198.5468]
[1751548593625,6.5257,153.19,153.16,192.02]
[1751548593930,6.5257,153.19,153.17,45.96]
[1751548596027,6.5254,153.2,153.17,52.4863]
[1751548596230,201.45971204,153.22,153.17,45.96]
[1751548596527,5.25159193,153.21,153.17,45.96]
[1751548596726,6.5258,153.19,153.17,45.96]
[1751548596926,201.45971204,153.22,153.17,45.96]
[1751548597227,5.25499851,153.21,153.17,52.4862]
[1751548597532,201.45971204,153.22,153.17,52.4862]
[1751548598127,201.45971204,153.22,153.18,6.526]
[1751548598330,2.349,153.24,153.19,191.98]
[1751548598634,2.349,153.24,153.19,198.5053]
[1751548598936,2.349,153.24,153.19,191.98]
[1751548599123,2.349,153.24,153.2,6.5249]
[1751548599728,6.5241,153.23,153.2,6.5249]
[1751548600335,6.5243,153.22,153.2,6.5249]
[1751548600533,7.0843773,153.26,153.21,6.5246]
[1751548600836,6.5237,153.24,153.22,45.96]
[1751548601036,6.5237,153.24,153.23,191.96]
[1751548602736,4.7692773,153.32,153.23,191.96]
[1751548602934,4.7692773,153.32,153.24,4.7692773]
[1751548603133,4.5932,153.33,153.24,4.7692773]
[1751548603134,6.5222,153.27,153.24,4.7692773]
[1751548603540,4.7692773,153.3,153.24,4.7692773]
[1751548603737,6.5219,153.28,153.24,4.7692773]
[1751548604238,6.5219,153.28,153.24,11.2924773]
[1751548604642,6.5214,153.29,153.24,4.7692773]
[1751548604939,4.7692773,153.3,153.24,4.7692773]
[1751548605241,6.5215,153.29,153.26,6.5223]
[1751548605442,6.5215,153.29,153.27,237.84]
[1751548605743,6.5217,153.28,153.27,237.84]
[1751548606339,4.7692773,153.31,153.27,237.84]
[1751548606650,9.3624773,153.33,153.27,237.84]
[1751548607041,6.5214,153.29,153.27,237.84]
[1751548607743,6.521,153.3,153.27,244.3621]
[1751548607951,4.7692773,153.31,153.27,237.84]
[1751548608147,6.5209,153.3,153.27,237.84]
[1751548608349,4.7692773,153.31,153.27,237.84]
[1751548608744,4.5932,153.33,153.27,237.84]
[1751548608950,4.7692773,153.31,153.27,237.84]
[1751548609152,6.5216,153.29,153.27,237.84]
[1751548609948,6.5217,153.28,153.27,237.84]
[1751548610148,4.7692773,153.31,153.27,237.84]
[1751548610449,6.5211,153.3,153.27,237.84]
[1751548610650,4.7692773,153.32,153.27,237.84]
[1751548610951,6.5211,153.3,153.27,237.84]
[1751548611248,4.7692773,153.32,153.26,6.5224]
[1751548611447,4.7692773,153.28,153.23,45.94]
[1751548611653,63.5726,153.33,153.23,45.94]
[1751548611654,6.5234,153.24,153.23,45.94]
[1751548611851,6.5234,153.24,153.23,237.76]
[1751548614650,11.2926773,153.24,153.23,237.76]
[1751548614849,4.7692773,153.24,153.22,191.82]
[1751548615045,4.7692773,153.24,153.22,188.2534]
[1751548616457,4.7692773,153.24,153.2,191.84]
[1751548616656,4.7692773,153.22,153.2,191.84]
[1751548618154,6.5247,153.21,153.2,191.84]
[1751548618345,4.7692773,153.22,153.2,191.84]
[1751548620062,6.5247,153.21,153.2,191.84]
[1751548620356,4.7692773,153.22,153.18,191.84]
[1751548620561,4.7692773,153.19,153.18,191.84]
[1751548621055,11.2947773,153.19,153.18,191.84]
[1751548621958,6.526,153.18,153.14,570.2275]
[1751548622155,6.526,153.18,153.16,45.92]
[1751548622653,6.5264,153.17,153.16,45.92]
[1751548623659,6.5262,153.18,153.16,45.92]
[1751548623855,4.7692773,153.19,153.16,45.92]
[1751548624158,6.5262,153.18,153.16,45.92]
[1751548625059,6.5264,153.17,153.16,45.92]
[1751548625258,4.7692773,153.19,153.04,4.7692773]
[1751548625448,4.7692773,153.12,153.1,191.84]
[1751548625654,6.5283,153.13,153.1,198.3693]
[1751548625854,4.7692773,153.14,153.1,198.3693]
[1751548626360,6.5284,153.13,153.1,191.84]
[1751548626658,4.7692773,153.14,153.1,191.84]
[1751548627254,4.7692773,153.12,153.1,191.84]
[1751548627856,2.2791,153.18,153.1,191.84]
[1751548628058,6.5279,153.14,153.1,198.369]
[1751548628259,4.7692773,153.15,153.1,191.84]
[1751548628860,4.7692773,153.15,153.11,6.5286]
[1751548629256,4.7692773,153.15,153.1,191.84]
[1751548629460,11.2966773,153.15,153.1,191.84]
[1751548629965,11.2966773,153.15,153.11,6.5287]
[1751548630158,11.2966773,153.15,153.1,191.84]
[1751548630562,4.7692773,153.15,153.1,191.84]
[1751548630758,4.7692773,153.17,153.1,196.6092773]
[1751548630957,7.1146773,153.19,153.14,6.5276]
[1751548631154,7.1146773,153.19,153.15,191.88]
[1751548631657,6.5261,153.18,153.15,191.88]
[1751548631860,7.1146773,153.19,153.15,191.88]
[1751548632365,6.5264,153.17,153.15,191.88]
[1751548632759,7.1146773,153.19,153.15,191.88]
[1751548632959,6.5263,153.18,153.15,191.88]
[1751548635869,6.5263,153.18,153.15,198.4072]
[1751548636469,6.5263,153.18,153.15,191.88]
[1751548638464,7.1146773,153.19,153.15,191.88]
[1751548638660,4.7692773,153.17,153.15,191.88]
[1751548639073,11.2960773,153.17,153.15,191.88]
[1751548639273,4.7692773,153.17,153.15,191.88]
[1751548640177,6.5268,153.16,153.15,191.88]
[1751548640576,4.7692773,153.17,153.14,45.94]
[1751548640972,6.5272,153.15,153.14,45.94]
[1751548641368,11.2964773,153.15,153.14,45.94]
[1751548641574,11.2964773,153.15,153.13,191.88]
[1751548641575,6.5277,153.14,153.13,191.88]
[1751548642580,6.5288,153.12,153.11,191.88]
[1751548642776,4.7692773,153.12,153.1,45.94]
[1751548643283,4.7692773,153.14,153.1,45.94]
[1751548643783,6.5289,153.11,153.1,45.94]
[1751548644781,9.5385546,153.12,152.92,19.61]
[1751548644981,4.7692773,153.07,152.98,52.8853773]
[1751548645277,6.5324,153.03,152.99,237.8]
[1751548645481,4.7692773,153.05,152.99,244.3338]
[1751548645882,6.5326,153.03,153.0,6.5336]
[1751548646084,4.7692773,153.05,152.99,237.8]
[1751548646382,6.5333,153.01,152.99,237.8]
[1751548647885,4.7692773,153.03,152.99,237.8]
[1751548648584,6.5335,153.01,152.99,237.8]
[1751548649979,6.533,153.02,152.99,237.8]
[1751548650276,4.7692773,153.03,152.99,237.8]
[1751548650477,6.5332,153.02,152.99,237.8]
[1751548650878,4.7692773,153.03,152.99,237.8]
[1751548651386,6.5329,153.02,152.99,237.8]
[1751548651887,6.5329,153.02,152.99,244.3338]
[1751548652983,6.5325,153.03,153.0,6.5336]
[1751548653290,4.7692773,153.04,153.01,191.98]
[1751548653693,6.5326,153.03,153.01,191.98]
[1751548653884,4.7692773,153.04,153.01,191.98]
[1751548654793,6.5328,153.03,153.01,191.98]
[1751548655089,4.7880039,153.02,152.91,45.94]
[1751548655290,4.7880039,152.95,152.92,191.96]
[1751548655488,6.5365,152.94,152.92,191.96]
[1751548655890,4.7880039,152.95,152.92,191.96]
[1751548657984,11.3246039,152.93,152.92,191.96]
[1751548658386,4.7880039,152.93,152.91,45.94]
[1751548658692,4.7880039,152.93,152.87,237.92]
[1751548658893,4.7880039,152.9,152.87,237.92]
[1751548659485,6.5388,152.88,152.87,237.92]